fUSD/lending_fUSD_20250811
["ID","MTS","AMOUNT","RATE_DAILY","PERIOD"]
[378493194,1754886677087,-400.0,0.00018094,2]
[378493195,1754886677097,-649.48,0.00018094,2]
[378493196,1754886677106,-163.053297,0.00018094,2]
[378493197,1754886677116,-1680.21,0.00018094,2]
[378493198,1754886677125,-1049.17,0.00018094,2]
[378493199,1754886677135,-400.0,0.00018094,2]
[378493200,1754886677144,-951.39,0.00018094,2]
[378493201,1754886677153,-454.86,0.00018094,2]
[378493202,1754886677162,-824.89,0.00018094,2]
[378493203,1754886677172,-407.63,0.00018094,2]
[378493204,1754886677183,-585.0,0.00018094,2]
[378493205,1754886677192,-400.0,0.00018094,2]
[378493206,1754886677201,-400.0,0.00018094,2]
[378493207,1754886677210,-1455.85,0.00018094,2]
[378493208,1754886677220,-473.07960834,0.00018094,2]
[378493209,1754886677229,-400.0,0.00018094,2]
[378493210,1754886677239,-769.24,0.00018094,2]
[378493211,1754886677249,-400.0,0.00018094,2]
[378493212,1754886677258,-2199.58,0.00018094,2]
[378493213,1754886677267,-655.83,0.00018094,2]
[378493214,1754886677276,-400.0,0.00018094,2]
[378493215,1754886677286,-668.14,0.00018094,2]
[378493216,1754886677295,-2114.03,0.00018094,2]
[378493217,1754886677304,-410.79,0.00018094,2]
[378493218,1754886677315,-717.01,0.00018094,2]
[378493219,1754886677324,-526.86,0.00018094,2]
[378493220,1754886677333,-1612.96,0.00018094,2]
[378493221,1754886677342,-1228.52,0.00018094,2]
[378493222,1754886677351,-400.0,0.00018094,2]
[378493223,1754886677360,-2955.4,0.00018094,2]
[378493224,1754886677369,-400.0,0.00018094,2]
[378493225,1754886677378,-2031.05,0.00018094,2]
[378493226,1754886677387,-882.39,0.00018094,2]
[378493227,1754886677396,-400.0,0.00018094,2]
[378493228,1754886677405,-1330.79,0.00018094,2]
[378493229,1754886677416,-715.05,0.00018094,2]
[378493230,1754886677426,-1272.39,0.00018094,2]
[378493231,1754886677438,-8173.14,0.00018094,2]
[378493232,1754886677447,-1781.66,0.00018094,2]
[378493233,1754886677456,-477.68,0.00018094,2]
[378493234,1754886677466,-1122.75,0.00018094,2]
[378493235,1754886677474,-1331.68,0.00018094,2]
[378493236,1754886677483,-888.75,0.00018094,2]
[378493237,1754886677492,-400.0,0.00018094,2]
[378493238,1754886677502,-236.19400908,0.00018094,2]
[378493239,1754886677511,-400.0,0.00018094,2]
[378493240,1754886677520,-2038.29,0.00018094,2]
[378493241,1754886677530,-554.01,0.00018094,2]
[378493242,1754886677539,-651.43,0.00018094,2]
[378493243,1754886677549,-1369.36,0.00018094,2]
[378493244,1754886677558,-1339.24,0.00018094,2]
[378493245,1754886677567,-1803.47,0.00018094,2]
[378493246,1754886677576,-1113.52,0.00018094,2]
[378493247,1754886677588,-2663.6,0.00018094,2]
[378493248,1754886677598,-400.0,0.00018094,2]
[378493249,1754886677607,-3713.7,0.00018094,2]
[378493250,1754886677616,-1153.98,0.00018094,2]
[378493251,1754886677626,-1944.28,0.00018094,2]
[378493252,1754886677635,-1435.98,0.00018094,2]
[378493253,1754886677644,-400.0,0.00018094,2]
[378493254,1754886677653,-2243.73,0.00018094,2]
[378493255,1754886677664,-3812.9,0.00018094,2]
[378493256,1754886677674,-400.0,0.00018094,2]
[378493257,1754886677685,-400.0,0.00018094,2]
[378493258,1754886677694,-592.95,0.00018094,2]
[378493259,1754886677703,-150.0,0.00018094,2]
[378493260,1754886677712,-400.0,0.00018094,2]
[378493261,1754886677721,-400.0,0.00018094,2]
[378493262,1754886677730,-1891.0,0.00018094,2]
[378493263,1754886677739,-400.0,0.00018094,2]
[378493264,1754886677749,-400.0,0.00018094,2]
[378493265,1754886677758,-1087.1,0.00018094,2]
[378493266,1754886677767,-1589.93,0.00018094,2]
[378493267,1754886677777,-1124.67,0.00018094,2]
[378493268,1754886677786,-2878.68,0.00018094,2]
[378493269,1754886677795,-495.91,0.00018094,2]
[378493270,1754886677804,-400.0,0.00018094,2]
[378493271,1754886677814,-950.56,0.00018094,2]
[378493272,1754886677823,-1307.49,0.00018094,2]
[378493273,1754886677832,-2695.27,0.00018094,2]
[378493274,1754886677841,-856.38,0.00018094,2]
[378493275,1754886677850,-739.41,0.00018094,2]
[378493276,1754886677859,-1363.59,0.00018094,2]
[378493277,1754886678076,-812.2,0.00018094,2]
[378493278,1754886678085,-855.45,0.00018094,2]
[378493279,1754886678095,-5196.27,0.00018094,2]
[378493280,1754886678104,-400.0,0.00018094,2]
[378493281,1754886678114,-5397.17,0.00018094,2]
[378493282,1754886678124,-1486.27,0.00018094,2]
[378493283,1754886678134,-1285.96,0.00018094,2]
[378493284,1754886678143,-2798.96,0.00018094,2]
[378493285,1754886678153,-1895.73,0.00018094,2]
[378493286,1754886678162,-400.0,0.00018094,2]
[378493287,1754886678172,-806.53,0.00018094,2]
[378493288,1754886678182,-1274.2,0.00018094,2]
[378493289,1754886678192,-1651.76,0.00018094,2]
[378493290,1754886678202,-403.15854725,0.00018094,2]
[378493291,1754886678211,-1256.2,0.00018094,2]
[378493292,1754886678221,-635.75,0.00018094,2]
[378493293,1754886678230,-849.98,0.00018094,2]
[378493294,1754886678239,-400.0,0.00018094,2]
[378493295,1754886678249,-507.68,0.00018094,2]
[378493296,1754886678258,-3620.19,0.00018094,2]
[378493297,1754886678268,-538.52,0.00018094,2]
[378493298,1754886678277,-400.0,0.00018094,2]
[378493299,1754886678287,-1287.03,0.00018094,2]
[378493300,1754886678296,-539.41,0.00018094,2]
[378493301,1754886678306,-675.45,0.00018094,2]
[378493302,1754886678316,-1583.18,0.00018094,2]
[378493303,1754886678325,-701.46,0.00018094,2]
[378493304,1754886678335,-400.0,0.00018094,2]
[378493305,1754886678344,-400.0,0.00018094,2]
[378493306,1754886678354,-400.0,0.00018095,2]
[378493307,1754886678363,-400.0,0.00018095,2]
[378493308,1754886678373,-406.85,0.00018095,2]
[378493309,1754886678382,-400.0,0.00018095,2]
[378493310,1754886678391,-400.0,0.00018095,2]
[378493311,1754886678400,-711.84,0.00018095,2]
[378493312,1754886678410,-400.0,0.00018095,2]
[378493313,1754886678419,-400.0,0.00018095,2]
[378493314,1754886678429,-400.0,0.00018095,2]
[378493315,1754886678439,-524.02,0.00018095,2]
[378493316,1754886678448,-400.0,0.00018095,2]
[378493317,1754886678458,-604.75,0.00018095,2]
[378493318,1754886678467,-599.12,0.00018095,2]
[378493319,1754886678476,-400.0,0.00018095,2]
[378493320,1754886678486,-400.0,0.00018095,2]
[378493321,1754886678496,-982.92,0.00018095,2]
[378493322,1754886678505,-400.0,0.00018095,2]
[378493323,1754886678514,-400.0,0.00018095,2]
[378493324,1754886678522,-766.83,0.00018095,2]
[378493325,1754886678532,-400.0,0.00018095,2]
[378493326,1754886678541,-537.1623175,0.00018095,2]
[378493327,1754886678550,-442.27,0.00018095,2]
[378493328,1754886678560,-502.43,0.00018095,2]
[378493329,1754886678570,-443.75,0.00018095,2]
[378493330,1754886678579,-400.0,0.00018095,2]
[378493331,1754886678592,-593.67,0.00018095,2]
[378493332,1754886678601,-400.0,0.00018095,2]
[378493333,1754886678610,-400.0,0.00018095,2]
[378493334,1754886678620,-400.0,0.00018095,2]
[378493335,1754886678630,-400.0,0.00018095,2]
[378493336,1754886678639,-400.0,0.00018095,2]
[378493337,1754886678648,-400.0,0.00018095,2]
[378493338,1754886678656,-400.0,0.00018095,2]
[378493339,1754886678666,-400.0,0.00018095,2]
[378493340,1754886678676,-984.1,0.00018095,2]
[378493341,1754886678686,-400.0,0.00018095,2]
[378493342,1754886678695,-400.0,0.00018095,2]
[378493343,1754886678704,-530.59,0.00018095,2]
[378493344,1754886678907,-408.13,0.00018095,2]
[378493345,1754886678917,-796.23,0.00018095,2]
[378493346,1754886678926,-400.0,0.00018095,2]
[378493347,1754886678936,-459.01,0.00018095,2]
[378493348,1754886678945,-1031.28,0.00018095,2]
[378493349,1754886678954,-400.0,0.00018095,2]
[378493350,1754886678964,-490.33,0.00018095,2]
[378493351,1754886678973,-400.0,0.00018095,2]
[378493352,1754886678982,-562.38,0.00018095,2]
[378493353,1754886678991,-589.46,0.00018095,2]
[378493354,1754886679001,-400.0,0.00018095,2]
[378493355,1754886679010,-435.55,0.00018095,2]
[378493356,1754886679020,-400.0,0.00018095,2]
[378493357,1754886679029,-498.17,0.00018095,2]
[378493358,1754886679038,-400.0,0.00018095,2]
[378493359,1754886679047,-400.0,0.00018095,2]
[378493360,1754886679057,-498.63,0.00018095,2]
[378493361,1754886679067,-409.56,0.00018095,2]
[378493362,1754886679076,-400.0,0.00018095,2]
[378493363,1754886679085,-567.63,0.00018095,2]
[378493364,1754886679095,-690.83,0.00018095,2]
[378493365,1754886679104,-400.0,0.00018095,2]
[378493366,1754886679113,-400.0,0.00018095,2]
[378493367,1754886679123,-400.0,0.00018095,2]
[378493368,1754886679133,-400.0,0.00018095,2]
[378493369,1754886679142,-710.53,0.00018095,2]
[378493370,1754886679151,-436.05,0.00018095,2]
[378493371,1754886679161,-400.0,0.00018095,2]
[378493372,1754886679170,-520.92667259,0.00018095,2]
[378493373,1754886679179,-400.0,0.00018095,2]
[378493374,1754886679189,-400.0,0.00018095,2]
[378493375,1754886679199,-400.0,0.00018095,2]
[378493376,1754886679208,-400.0,0.00018095,2]
[378493377,1754886679217,-400.0,0.00018095,2]
[378493378,1754886679226,-502.26,0.00018095,2]
[378493379,1754886679235,-400.0,0.00018095,2]
[378493380,1754886679244,-549.87209619,0.00018095,2]
[378493381,1754886679253,-400.0,0.00018095,2]
[378493382,1754886679262,-564.3,0.00018095,2]
[378493383,1754886679272,-400.0,0.00018095,2]
[378493384,1754886679281,-400.0,0.00018095,2]
[378493385,1754886679290,-400.0,0.00018095,2]
[378493386,1754886679299,-400.0,0.00018095,2]
[378493387,1754886679309,-400.0,0.00018095,2]
[378493388,1754886679318,-400.0,0.00018095,2]
[378493389,1754886679327,-400.0,0.00018095,2]
[378493390,1754886679337,-400.0,0.00018095,2]
[378493391,1754886679347,-400.0,0.00018095,2]
[378493392,1754886679356,-400.0,0.00018095,2]
[378493393,1754886679365,-638.71,0.00018095,2]
[378493394,1754886679374,-400.0,0.00018095,2]
[378493395,1754886679383,-512.9,0.00018095,2]
[378493396,1754886679392,-400.0,0.00018095,2]
[378493397,1754886679401,-1168.39,0.00018095,2]
[378493398,1754886679411,-816.18,0.00018095,2]
[378493399,1754886679420,-400.0,0.00018095,2]
[378493400,1754886679429,-400.0,0.00018095,2]
[378493401,1754886679440,-1319.27,0.00018095,2]
[378493402,1754886679449,-400.0,0.00018095,2]
[378493403,1754886679459,-848.1,0.00018095,2]
[378493404,1754886679468,-981.99160235,0.00018095,2]
[378493405,1754886679477,-452.23,0.00018095,2]
[378493406,1754886679486,-763.33,0.00018095,2]
[378493407,1754886679496,-400.0,0.00018095,2]
[378493408,1754886679506,-400.0,0.00018095,2]
[378493409,1754886679516,-400.0,0.00018095,2]
[378493410,1754886679525,-400.0,0.00018095,2]
[378493411,1754886679535,-400.0,0.00018095,2]
[378493412,1754886679545,-400.0,0.00018095,2]
[378493413,1754886679554,-486.51277056,0.00018095,2]
[378493414,1754886679563,-534.83,0.00018095,2]
[378493415,1754886679572,-1432.31,0.00018095,2]
[378493416,1754886679583,-400.0,0.00018095,2]
[378493417,1754886679593,-514.07771216,0.00018095,2]
[378493418,1754886679602,-400.0,0.00018095,2]
[378493419,1754886679611,-520.0,0.00018095,2]
[378493420,1754886679620,-1096.29,0.00018095,2]
[378493421,1754886679630,-481.17,0.00018095,2]
[378493422,1754886679639,-500.1,0.00018095,2]
[378493423,1754886679648,-400.0,0.00018095,2]
[378493424,1754886679657,-400.0,0.00018095,2]
[378493425,1754886679668,-1173.96,0.00018095,2]
[378493426,1754886679677,-400.0,0.00018095,2]
[378493427,1754886679689,-402.28,0.00018095,2]
[378493428,1754886679698,-400.0,0.00018095,2]
[378493429,1754886679707,-400.0,0.00018095,2]
[378493430,1754886679716,-1368.54,0.00018095,2]
[378493431,1754886679726,-400.0,0.00018095,2]
[378493432,1754886679735,-752.63,0.00018095,2]
[378493433,1754886679744,-400.0,0.00018095,2]
[378493434,1754886679754,-538.48,0.00018095,2]
[378493435,1754886679763,-400.0,0.00018095,2]
[378493436,1754886679772,-673.3,0.00018095,2]
[378493437,1754886679781,-400.0,0.00018095,2]
[378493438,1754886679791,-400.0,0.00018095,2]
[378493439,1754886679800,-1433.44,0.00018095,2]
[378493440,1754886679809,-400.0,0.00018095,2]
[378493441,1754886679818,-400.0,0.00018095,2]
[378493442,1754886679828,-490.29606514,0.00018095,2]
[378493443,1754886679837,-1225.04,0.00018095,2]
[378493444,1754886679846,-740.04,0.00018095,2]
[378493445,1754886679855,-1059.77,0.00018095,2]
[378493446,1754886679864,-400.0,0.00018095,2]
[378493447,1754886679873,-400.0,0.00018095,2]
[378493448,1754886679883,-400.0,0.00018095,2]
[378493449,1754886679892,-400.0,0.00018095,2]
[378493450,1754886679901,-1292.83,0.00018095,2]
[378493451,1754886679911,-2940.45,0.00018095,2]
[378493452,1754886679920,-400.0,0.00018095,2]
[378493453,1754886679929,-400.0,0.00018095,2]
[378493454,1754886679941,-400.0,0.00018095,2]
[378493455,1754886679950,-400.0,0.00018095,2]
[378493456,1754886679959,-400.0,0.00018095,2]
[378493457,1754886679968,-704.09,0.00018095,2]
[378493458,1754886679978,-1244.19,0.00018095,2]
[378493459,1754886679987,-400.0,0.00018095,2]
[378493460,1754886679996,-963.23,0.00018095,2]
[378493461,1754886680005,-400.0,0.00018095,2]
[378493462,1754886680014,-505.67,0.00018095,2]
[378493463,1754886680023,-503.46,0.00018095,2]
[378493464,1754886680032,-400.0,0.00018095,2]
[378493465,1754886680041,-1351.37,0.00018095,2]
[378493466,1754886680050,-1548.12,0.00018095,2]
[378493467,1754886680059,-400.0,0.00018095,2]
[378493468,1754886680068,-402.93110839,0.00018095,2]
[378493469,1754886680077,-439.78,0.00018095,2]
[378493470,1754886680087,-808.08,0.00018095,2]
[378493471,1754886680096,-2199.24,0.00018095,2]
[378493472,1754886680105,-1408.18,0.00018095,2]
[378493473,1754886680114,-400.0,0.00018095,2]
[378493474,1754886680123,-753.75,0.00018095,2]
[378493475,1754886680133,-400.0,0.00018095,2]
[378493476,1754886680142,-154.161624,0.00018095,2]
[378493477,1754886680157,-400.0,0.00018095,2]
[378493478,1754886680175,-533.78,0.00018095,2]
[378493479,1754886680194,-400.0,0.00018095,2]
[378493480,1754886680215,-400.0,0.00018095,2]
[378493481,1754886680231,-516.94,0.00018095,2]
[378493482,1754886680248,-1025.15,0.00018095,2]
[378493483,1754886680267,-400.0,0.00018095,2]
[378493484,1754886680288,-400.0,0.00018095,2]
[378493485,1754886680306,-1428.05,0.00018095,2]
[378493486,1754886680325,-1684.69,0.00018095,2]
[378493487,1754886680344,-400.0,0.00018095,2]
[378493488,1754886680359,-1041.68,0.00018095,2]
[378493489,1754886680377,-1024.18,0.00018095,2]
[378493490,1754886680389,-400.0,0.00018095,2]
[378493491,1754886680408,-1016.3,0.00018095,2]
[378493492,1754886680422,-400.0,0.00018095,2]
[378493493,1754886680438,-819.85,0.00018095,2]
[378493494,1754886680454,-400.0,0.00018095,2]
[378493495,1754886680469,-1791.52,0.00018095,2]
[378493496,1754886680485,-448.18,0.00018095,2]
[378493497,1754886680501,-400.0,0.00018095,2]
[378493498,1754886680516,-973.65,0.00018095,2]
[378493499,1754886680532,-718.62,0.00018095,2]
[378493500,1754886680547,-454.71,0.00018095,2]
[378493501,1754886680562,-538.94,0.00018095,2]
[378493502,1754886680579,-420.94,0.00018095,2]
[378493503,1754886680597,-403.21968044,0.00018095,2]
[378493504,1754886680613,-400.0,0.00018095,2]
[378493505,1754886680628,-400.0,0.00018095,2]
[378493506,1754886680643,-400.0,0.00018095,2]
[378493507,1754886680659,-634.12,0.00018095,2]
[378493508,1754886680676,-400.0,0.00018095,2]
[378493509,1754886680691,-708.01,0.00018095,2]
[378493510,1754886680705,-556.52,0.00018095,2]
[378493511,1754886680721,-400.0,0.00018095,2]
[378493512,1754886680736,-400.0,0.00018095,2]
[378493513,1754886680752,-1061.75,0.00018095,2]
[378493514,1754886680766,-151.0,0.00018095,2]
[378493515,1754886680782,-286.88103024,0.00018095,2]
[378493516,1754886680797,-400.0,0.00018095,2]
[378493517,1754886680812,-400.0,0.00018095,2]
[378493518,1754886680827,-400.0,0.00018095,2]
[378493519,1754886680843,-155.133277,0.00018095,2]
[378493520,1754886680858,-914.47,0.00018095,2]
[378493521,1754886680873,-2216.94,0.00018095,2]
[378493522,1754886680890,-400.0,0.00018095,2]
[378493523,1754886680905,-504.42,0.00018095,2]
[378493524,1754886680921,-852.11,0.00018095,2]
[378493525,1754886680937,-2132.0,0.00018095,2]
[378493526,1754886680952,-929.86,0.00018095,2]
[378493527,1754886680967,-1043.97,0.00018095,2]
[378493528,1754886680982,-1784.51,0.00018095,2]
[378493529,1754886680997,-400.0,0.00018095,2]
[378493530,1754886681013,-1951.39,0.00018095,2]
[378493531,1754886681028,-400.0,0.00018095,2]
[378493532,1754886681043,-2489.93,0.00018095,2]
[378493533,1754886681058,-466.31,0.00018095,2]
[378493534,1754886681073,-1184.34,0.00018095,2]
[378493535,1754886681089,-400.0,0.00018095,2]
[378493536,1754886681111,-933.41,0.00018095,2]
[378493537,1754886681127,-937.87,0.00018095,2]
[378493538,1754886681144,-673.61,0.00018095,2]
[378493539,1754886681161,-282.55809603,0.00018095,2]
[378493540,1754886681178,-400.0,0.00018095,2]
[378493541,1754886681196,-400.0,0.00018095,2]
[378493542,1754886681212,-2511.12,0.00018095,2]
[378493543,1754886681229,-400.0,0.00018095,2]
[378493544,1754886681246,-1694.6,0.00018095,2]
[378493545,1754886681272,-400.0,0.00018095,2]
[378493546,1754886681289,-400.0,0.00018095,2]
[378493547,1754886681305,-471.5,0.00018095,2]
[378493548,1754886681320,-400.0,0.00018095,2]
[378493549,1754886681337,-400.0,0.00018095,2]
[378493550,1754886681351,-1957.86,0.00018095,2]
[378493551,1754886681367,-844.51,0.00018095,2]
[378493552,1754886681384,-3867.29,0.00018095,2]
[378493553,1754886681398,-420.28,0.00018095,2]
[378493554,1754886681413,-400.0,0.00018095,2]
[378493555,1754886681430,-1922.57,0.00018095,2]
[378493556,1754886681444,-2073.51,0.00018095,2]
[378493557,1754886681459,-2662.56,0.00018095,2]
[378493558,1754886681474,-400.0,0.00018095,2]
[378493559,1754886681489,-400.0,0.00018095,2]
[378493560,1754886681504,-649.45,0.00018095,2]
[378493561,1754886681519,-965.39,0.00018095,2]
[378493562,1754886681534,-2303.33,0.00018095,2]
[378493563,1754886681548,-1938.9,0.00018095,2]
[378493564,1754886681564,-524.79629626,0.00018095,2]
[378493565,1754886681579,-4737.79,0.00018095,2]
[378493566,1754886681599,-443.09,0.00018095,2]
[378493567,1754886681613,-1611.6,0.00018095,2]
[378493568,1754886681628,-400.0,0.00018095,2]
[378493569,1754886681643,-620.19,0.00018095,2]
[378493570,1754886681658,-462.63848123,0.00018095,2]
[378493571,1754886681674,-411.44699682,0.00018095,2]
[378493572,1754886681688,-494.05,0.00018095,2]
[378493573,1754886681703,-400.0,0.00018095,2]
[378493574,1754886681718,-3411.58,0.00018095,2]
[378493575,1754886681731,-1364.24,0.00018095,2]
[378493576,1754886681746,-400.0,0.00018095,2]
[378493577,1754886681761,-400.0,0.00018095,2]
[378493578,1754886681776,-400.0,0.00018095,2]
[378493579,1754886681790,-928.56,0.00018095,2]
[378493580,1754886681805,-734.37,0.00018095,2]
[378493581,1754886681820,-400.0,0.00018095,2]
[378493582,1754886681835,-1639.26,0.00018095,2]
[378493583,1754886681850,-453.0,0.00018095,2]
[378493584,1754886681865,-400.0,0.00018095,2]
[378493585,1754886681880,-964.97,0.00018095,2]
[378493586,1754886681896,-400.0,0.00018095,2]
[378493587,1754886681912,-2514.27,0.00018095,2]
[378493588,1754886681927,-400.0,0.00018095,2]
[378493589,1754886681943,-400.0,0.00018095,2]
[378493590,1754886681959,-426.85,0.00018095,2]
[378493591,1754886681974,-1646.59,0.00018095,2]
[378493592,1754886681989,-566.96,0.00018095,2]
[378493593,1754886682004,-489.19,0.00018095,2]
[378493594,1754886682019,-4613.12,0.00018095,2]
[378493595,1754886682034,-990.1,0.00018095,2]
[378493596,1754886682050,-402.7778793,0.00018095,2]
[378493597,1754886682065,-1627.5,0.00018095,2]
[378493598,1754886682080,-1052.13,0.00018095,2]
[378493599,1754886682095,-1864.85,0.00018095,2]
[378493600,1754886682112,-1421.55,0.00018095,2]
[378493601,1754886682127,-400.0,0.00018095,2]
[378493602,1754886682142,-400.0,0.00018095,2]
[378493603,1754886682157,-667.49,0.00018095,2]
[378493604,1754886682171,-2035.68,0.00018095,2]
[378493605,1754886682187,-276.89941037,0.00018095,2]
[378493606,1754886682458,-526.76483613,0.00018095,2]
[378493607,1754886682475,-400.0,0.00018095,2]
[378493608,1754886682485,-2455.42,0.00018095,2]
[378493609,1754886682494,-963.99,0.00018095,2]
[378493610,1754886682503,-400.0,0.00018095,2]
[378493611,1754886682512,-400.0,0.00018095,2]
[378493612,1754886682521,-1921.78,0.00018095,2]
[378493613,1754886682532,-400.0,0.00018095,2]
[378493614,1754886682541,-857.46,0.00018095,2]
[378493615,1754886682550,-400.0,0.00018095,2]
[378493616,1754886682559,-1592.26,0.00018095,2]
[378493617,1754886682569,-7913.38,0.00018095,2]
[378493618,1754886682578,-879.48,0.00018095,2]
[378493619,1754886682591,-400.0,0.00018095,2]
[378493620,1754886682599,-740.94,0.00018095,2]
[378493621,1754886682609,-400.0,0.00018095,2]
[378493622,1754886682618,-1614.05,0.00018095,2]
[378493623,1754886682628,-403.59,0.00018095,2]
[378493624,1754886682638,-565.32,0.00018095,2]
[378493625,1754886682647,-839.55,0.00018095,2]
[378493626,1754886682656,-504.78,0.00018095,2]
[378493627,1754886682667,-2321.56,0.00018095,2]
[378493628,1754886682677,-639.29,0.00018095,2]
[378493629,1754886682688,-1629.58,0.00018095,2]
[378493630,1754886682697,-939.98,0.00018095,2]
[378493631,1754886682707,-1323.73,0.00018095,2]
[378493632,1754886682716,-400.0,0.00018095,2]
[378493633,1754886682725,-1738.72,0.00018095,2]
[378493634,1754886682735,-400.0,0.00018095,2]
[378493635,1754886682744,-2334.26,0.00018095,2]
[378493636,1754886682753,-400.0,0.00018095,2]
[378493637,1754886682763,-400.0,0.00018095,2]
[378493638,1754886682772,-2203.02,0.00018095,2]
[378493639,1754886682781,-400.0,0.00018095,2]
[378493640,1754886682790,-866.1,0.00018095,2]
[378493641,1754886682799,-454.63,0.00018095,2]
[378493642,1754886682809,-400.0,0.00018095,2]
[378493643,1754886682818,-590.93,0.00018095,2]
[378493644,1754886682827,-1370.62,0.00018095,2]
[378493645,1754886682837,-428.1,0.00018095,2]
[378493646,1754886682846,-400.0,0.00018095,2]
[378493647,1754886682857,-400.0,0.00018095,2]
[378493648,1754886682867,-400.0,0.00018095,2]
[378493649,1754886682876,-792.73,0.00018095,2]
[378493650,1754886682885,-1841.0,0.00018095,2]
[378493651,1754886682895,-532.38154809,0.00018095,2]
[378493652,1754886682904,-822.77,0.00018095,2]
[378493653,1754886682913,-1944.13,0.00018095,2]
[378493654,1754886682922,-400.0,0.00018095,2]
[378493655,1754886682933,-3548.7,0.00018095,2]
[378493656,1754886682942,-400.0,0.00018095,2]
[378493657,1754886682952,-621.88,0.00018095,2]
[378493658,1754886682962,-400.0,0.00018095,2]
[378493659,1754886682971,-808.04,0.00018095,2]
[378493660,1754886682981,-1925.87,0.00018095,2]
[378493661,1754886682990,-1150.74,0.00018095,2]
[378493662,1754886682999,-421.99,0.00018095,2]
[378493663,1754886683008,-1979.32,0.00018095,2]
[378493664,1754886683017,-400.0,0.00018095,2]
[378493665,1754886683027,-499.88,0.00018095,2]
[378493666,1754886683036,-436.14,0.00018095,2]
[378493667,1754886683046,-450.76,0.00018095,2]
[378493668,1754886683055,-400.0,0.00018095,2]
[378493669,1754886683065,-848.85,0.00018095,2]
[378493670,1754886683075,-400.0,0.00018095,2]
[378493671,1754886683084,-400.0,0.00018095,2]
[378493672,1754886683092,-4500.31,0.00018095,2]
[378493673,1754886683101,-449.78,0.00018095,2]
[378493674,1754886683111,-400.0,0.00018095,2]
[378493675,1754886683121,-633.736289,0.00018095,2]
[378493676,1754886683130,-1272.95,0.00018095,2]
[378493677,1754886683140,-2845.53,0.00018095,2]
[378493678,1754886683150,-400.0,0.00018095,2]
[378493679,1754886683159,-633.736289,0.00018095,2]
[378493680,1754886683169,-2568.52,0.00018095,2]
[378493681,1754886683178,-400.0,0.00018095,2]
[378493682,1754886683189,-5336.15,0.00018095,2]
[378493683,1754886683199,-906.0,0.00018095,2]
[378493684,1754886683209,-817.46,0.00018095,2]
[378493685,1754886683218,-1189.6,0.00018095,2]
[378493686,1754886683228,-400.0,0.00018095,2]
[378493687,1754886683237,-400.0,0.00018095,2]
[378493688,1754886683247,-400.0,0.00018095,2]
[378493689,1754886683257,-2264.10087164,0.00018104,2]
[378493690,1754886683266,-209.57,0.00018136,2]
[378493691,1754886683276,-866.0,0.00018144,2]
[378493692,1754886683285,-2347.87260389,0.00018159,2]
[378493693,1754886683294,-345.44,0.00018164,2]